Cogmind - Beta 15 @@@ ROGUE MODE // 2025.07.19 @ 14:47:02 Player: Phosphophyllite Result: Destroyed by 80-X4A(R) with Subdweller Laser Performance ------------- Evolutions (0) 0 Regions Visited (3) 600 Robots Destroyed (19) 95 Value Destroyed (311) 311 Prototype IDs (0) 0 Alien Tech Used (0) 0 Bonus (0) 0 TOTAL SCORE: 1006 Bonus ------- None Cogmind --------- Core Integrity 0/250 Matter 300/300 Energy 100/100 System Corruption 0% Temperature Cool (6) Movement Core (50) Location -10/Subcaves Parts ------- > --- POWER (1) -------- (None) > --- PROPULSION (2) --- (None) > --- UTILITY (2) ------ (None) > --- WEAPON (2) ------- (None) > --- INVENTORY (5) ---- Light Ion Engine Aluminum Leg Hacking Suite Rocket Launcher Ripper Peak State ------------ > --- POWER ------------ Light Ion Engine > --- PROPULSION ------- Light Treads Light Treads > --- UTILITY ---------- Medium Storage Unit Seismic Detector > --- WEAPON ----------- Assault Rifle Assault Rifle > --- INVENTORY -------- Light Ion Engine Aluminum Leg Aluminum Leg Aluminum Leg Small Matter Pod Visual Processing Unit Sensor Array Sensor Array EM Pulse Gun [Rating: 8] Favorites ----------- Power Light Ion Engine Engine Light Ion Engine Propulsion Light Treads Treads Light Treads Utility Seismic Detector Device Seismic Detector Storage Medium Storage Unit Weapon Assault Rifle Energy Gun EM Pulse Gun Energy Cannon Beam Cannon Ballistic Gun Assault Rifle Build | -11 -10 -10 -10 ------- Run | Yrd Mat Min Sub Slots Evolved . | . . . . Power . | . . . . Propulsion . | . . . . Utility . | . . . . Weapon . | . . . . Parts Attached 13 | 7 5 1 . Power 2 | 1 1 . . Engine 2 | 1 1 . . Core . | . . . . Reactor . | . . . . Propulsion 4 | 2 2 . . Treads 4 | 2 2 . . Leg . | . . . . Wheel . | . . . . Hover . | . . . . Flight . | . . . . Utility 3 | 2 1 . . Device 1 | 1 . . . Storage 2 | 1 1 . . Processor . | . . . . Hackware . | . . . . Protection . | . . . . Artifact . | . . . . Weapon 4 | 2 1 1 . Energy Gun 1 | 1 . . . Energy Cannon 1 | . . 1 . Ballistic Gun 2 | 1 1 . . Ballistic Cannon . | . . . . Launcher . | . . . . Special Weapon . | . . . . Impact Weapon . | . . . . Slashing Weapon . | . . . . Piercing Weapon . | . . . . Special Melee Weapon . | . . . . Unidentified Prototypes . | . . . . Parts Lost 2 | . . 2 . Power . | . . . . Propulsion . | . . . . Utility . | . . . . Weapon 2 | . . 2 . Highest Loss Streak 2 | . . 2 . To Critical Strikes . | . . . . Average Backups 8 | 3 8 10 5 Power . | . 1 1 1 Propulsion 2 | 1 2 3 1 Utility 3 | . 3 4 1 Weapon 1 | . 1 1 2 Tool/Special . | . . . . Unused Backups 16 | 1 3 7 5 Power 1 | . . . 1 Propulsion 5 | . 1 3 1 Utility 7 | 1 2 3 1 Weapon 3 | . . 1 2 Tool/Special . | . . . . Average Slot Usage (%) 97 | . 100 99 . Engine 13 | . 14 14 . Treads 27 | . 28 28 . Device 13 | . 14 14 . Storage 13 | . 14 14 . Energy Cannon 5 | . . 13 . Ballistic Gun 21 | . 28 14 . Peak Build Rating 8 | 7 8 8 1 Average Rating 7 | 6 7 7 1 On Entrance 4 | . 7 8 1 Naked Turns 20 | . . 2 18 Heaviest Build 19 | 13 18 19 . Greatest Support 40 | 40 40 40 3 Greatest Overweight (x) 1 | 1 . . . Average Overweight (x) . | . . . . Largest Inventory Capacity 10 | 8 10 10 5 Average Capacity 9 | 7 9 9 5 Most Carried 10 | 5 10 10 5 Average Carried 8 | 3 8 9 5 Final Capacity 10 | 8 10 5 5 Final Carried 10 | 4 10 5 5 Class Distribution -------------------- 100% | Mutant Dominant Class ---------------- Mutant | -10/Materials Mutant | -10/Mines Mutant | -10/Subcaves Resources | -11 -10 -10 -10 ----------- Run | Yrd Mat Min Sub Matter Collected 660 | 294 320 46 . Remotely . | . . . . Salvage Created 520 | 156 323 41 . Parts 39 | 15 20 4 . Haulers Intercepted 1 | . 1 . . Recyclers Shooed . | . . . . Parts Field Recycled . | . . . . Retrieved Matter . | . . . . Parts Self-Destructed . | . . . . Prevented . | . . . . Kills | -11 -10 -10 -10 ------- Run | Yrd Mat Min Sub Combat Hostiles Destroyed 11 | . 8 3 . Guns 9 | . 8 1 . Cannons 2 | . . 2 . Classes Destroyed 7 | 2 5 . . Tunneler 4 | 4 . . . Hauler 1 | . 1 . . Recycler 1 | 1 . . . Operator 1 | . 1 . . Watcher 1 | . 1 . . Swarmer 6 | . 3 3 . Grunt 5 | . 5 . . Best Kill Streak 4 | 4 4 3 . Combat Bots Only 4 | . 4 3 . Max Kills in Single Turn 1 | 1 1 1 . Gunslinging . | . . . . Exploded . | . . . . Melee . | . . . . Uniques/NPCs Destroyed . | . . . . Combat | -11 -10 -10 -10 -------- Run | Yrd Mat Min Sub Hostile Shots Fired 86 | . 50 35 1 Missed 26 | . 15 11 . Hits 60 | . 35 24 1 Projectile 60 | . 35 24 1 AOE 9 | . 1 8 . Damage Taken 905 | . 445 441 19 Core 263 | . 76 168 19 Absorbed by Shields . | . . . . Core Remaining (%) 100 | 100 . . . Volleys Fired 56 | 8 39 9 . Largest 2 | 2 2 2 . Hottest 80 | 60 40 80 . Shots Fired 112 | 16 78 18 . Gun 103 | 16 78 9 . Cannon 9 | . . 9 . Launcher . | . . . . Special . | . . . . Kinetic 95 | 8 78 9 . Thermal 9 | . . 9 . Explosive . | . . . . Electromagnetic 8 | 8 . . . Robot Hit Streak 12 | 5 12 2 . Robot Miss Streak 6 | 1 2 6 . Penetration Max . | . . . . Secondary Targets 2 | . 2 . . Max Gunslinging Chain 1 | . 1 . . Shots Hit Robots 69 | 10 54 5 . Core Hits 28 | 5 20 3 . Critical Kills . | . . . . Critical Parts Destroyed . | . . . . Critical Strikes . | . . . . Melee Attacks . | . . . . Impact . | . . . . Slashing . | . . . . Piercing . | . . . . Sneak Attacks . | . . . . Combat Hostiles . | . . . . Follow-up Attacks . | . . . . Damage Inflicted 896 | 131 681 84 . Guns 825 | 131 667 27 . Cannons 54 | . . 54 . Explosions . | . . . . Melee . | . . . . Ramming 17 | . 14 3 . Kinetic 733 | 39 667 27 . Thermal 54 | . . 54 . Explosive . | . . . . Electromagnetic 92 | 92 . . . Impact . | . . . . Slashing . | . . . . Piercing . | . . . . Highest Corruption . | . . . . Average Corruption . | . . . . Corruption Purged . | . . . . Corruption Blocked . | . . . . Overload Shots . | . . . . Overflow Damage . | . . . . Projectiles . | . . . . Explosions . | . . . . Melee . | . . . . Knockbacks . | . . . . Impact . | . . . . Kinetic . | . . . . Secondary . | . . . . Self-Inflicted Damage . | . . . . Shots . | . . . . Rammed 3 | . 2 1 . Targets Rammed 3 | . 2 1 . Kicked . | . . . . Crushed . | . . . . Highest Temperature 104 | . 8 104 . Average Temperature 45 | . 6 49 . Received Heat Transfer 183 | . 177 . 6 Siege Activations . | . . . . Martial Activations . | . . . . Shielding Activations . | . . . . Robots Disrupted . | . . . . Combat Hostiles . | . . . . Robots Corrupted . | . . . . Combat Hostiles . | . . . . Parts Fried . | . . . . Impact Corruptions . | . . . . Robots Melted . | . . . . Combat Hostiles . | . . . . Parts Melted 1 | . . 1 . Heat Transferred 111 | . . 111 . Parts Sabotaged . | . . . . Parts Stolen . | . . . . Parts Stripped . | . . . . Power Chain Reactions . | . . . . Alert | -11 -10 -10 -10 ------- Run | Yrd Mat Min Sub Maximum Alert Level . | . . . . Low Security (%) 100 | 100 100 100 . Level 1 . | . . . . Level 2 . | . . . . Level 3 . | . . . . Level 4 . | . . . . Level 5 . | . . . . High Security . | . . . . Max Security . | . . . . Peak Influence 153 | 10 153 75 . Initial 25 | . . 25 . Average 34 | 1 56 14 . Influence Increases 363 | 25 248 90 . Destroy 0b10 Robot/C 220 | . 160 60 . Destroy 0b10 Robot/NC 40 | 25 15 . . Destroy Leader 44 | . 34 10 . Successful Hack 13 | . 8 5 . Destroy Structure 1 | . 1 . . Lose Combat Pursuer 45 | . 30 15 . Influence Decreases 363 | 25 181 157 . Entered New Map 42 | . . 42 . Time Decay 321 | 25 181 115 . Squads Dispatched 1 | . 1 . . Investigation . | . . . . Extermination . | . . . . Reinforcement 1 | . 1 . . Assault . | . . . . Garrison . | . . . . Intercept . | . . . . Searches Triggered . | . . . . Construction Impeded . | . . . . Haulers Reinforced . | . . . . Active Scanning Responses . | . . . . Cargo Convoy Interrupts . | . . . . Stealth | -11 -10 -10 -10 --------- Run | Yrd Mat Min Sub Distress Signals 1 | . 1 . . Communications Jammed . | . . . . Distress Signals . | . . . . Times Spotted 29 | . 22 6 1 Peak Tracking Total 8 | . 8 3 . Tactical Retreats 2 | . 1 1 . Traps | -11 -10 -10 -10 ------- Run | Yrd Mat Min Sub Traps Triggered . | . . . . Indirectly . | . . . . Trap Hack Attempts . | . . . . Triggered . | . . . . Disarmed . | . . . . Reprogrammed . | . . . . Reused . | . . . . Traps Extracted . | . . . . Installed . | . . . . Triggered . | . . . . Machines | -11 -10 -10 -10 ---------- Run | Yrd Mat Min Sub Machines Disabled 1 | . 1 . . Max in Single Turn 1 | . 1 . . Machines Repaired . | . . . . Machines Dismantled . | . . . . Machines Sabotaged . | . . . . Overloaded Fab Kills . | . . . . Hacking | -11 -10 -10 -10 --------- Run | Yrd Mat Min Sub Machines Accessed 5 | . 4 1 . Terminals 3 | . 2 1 . Fabricators . | . . . . Repair Stations . | . . . . Recycling Units 2 | . 2 . . Scanalyzers . | . . . . Garrison Access . | . . . . Total Hacks 13 | . 10 3 . Successful 6 | . 4 2 . Failed 7 | . 6 1 . Catastrophic 3 | . 3 . . Database Lockouts . | . . . . Manual 9 | . 7 2 . Terminals 10 | . 7 3 . Fabricators . | . . . . Repair Stations . | . . . . Recycling Units 3 | . 3 . . Scanalyzers . | . . . . Garrison Access . | . . . . Terminal Hacks 2 | . 1 1 . Recall Investigation 1 | . 1 . . Zone Layout 1 | . . 1 . Fabricator Hacks . | . . . . Repair Station Hacks . | . . . . Recycling Unit Hacks 2 | . 2 . . Report Inventory 2 | . 2 . . Scanalyzer . | . . . . Garrison Access Hacks . | . . . . Unauthorized Hacks 2 | . 1 1 . Terminals 1 | . . 1 . Track 1 | . . 1 . Fabricators . | . . . . Repair Stations . | . . . . Recycling Units 1 | . 1 . . Recyclers 1 | . 1 . . Scanalyzers . | . . . . Garrison Access . | . . . . Data Cores Recovered . | . . . . Used . | . . . . Hacking Detections 2 | . 2 . . Full Trace Events 1 | . 1 . . Feedback Events . | . . . . Feedback Blocked . | . . . . Robot Schematics Acquired . | . . . . Robots Built . | . . . . Authchips . | . . . . Time . | . . . . Total Robot Build Rating . | . . . . Part Schematics Acquired . | . . . . Parts Built . | . . . . Authchips . | . . . . Time . | . . . . Total Part Build Rating . | . . . . Parts Repaired . | . . . . Time . | . . . . Parts Recycled . | . . . . Recycled Matter . | . . . . Retrieved Matter . | . . . . Retrieved Components . | . . . . Parts Scanalyzed . | . . . . Part Schematics Acquired . | . . . . Parts Damaged . | . . . . Bothacking | -11 -10 -10 -10 ------------ Run | Yrd Mat Min Sub Used RIF Installer . | . . . . Robots Hacked . | . . . . Non-combat . | . . . . Combat . | . . . . Robot Hacks Applied . | . . . . Relay Couplers Released . | . . . . Fabnet Peak Effective % . | . . . . Robots Rewired . | . . . . Allies Hacked . | . . . . Hacks Repelled . | . . . . Allies | -11 -10 -10 -10 -------- Run | Yrd Mat Min Sub Total Allies 3 | . . 3 . Largest Group 3 | . . 3 . Highest-Rated Group 40 | . . 40 . Highest-Rated Ally 16 | . . 16 . Total Orders . | . . . . Ally Attacks 2 | . . 2 . Total Damage 29 | . . 29 . Kills . | . . . . Allies Corrupted . | . . . . Allies Melted . | . . . . Intel | -11 -10 -10 -10 ------- Run | Yrd Mat Min Sub Active Infowar (turns) 1363 | 82 721 560 . Seismic 1363 | 82 721 560 . Robot Analysis Total . | . . . . Derelict Logs Recovered 1 | . . 1 . Drone Launches . | . . . . Drone Recoveries . | . . . . Exploration | -11 -10 -10 -10 ------------- Run | Yrd Mat Min Sub Turns Passed 1460 | 159 721 562 18 Spaces Moved 802 | 77 361 331 33 Core 41 | 3 . 5 33 Treads 761 | 74 361 326 . Legs . | . . . . Wheels . | . . . . Hover . | . . . . Flight . | . . . . Fastest Speed 50 | 50 160 50 50 Average Speed 154 | 156 160 158 50 Slowest Speed 160 | 160 160 160 50 Overloaded Moves . | . . . . Propulsion Burnouts . | . . . . Robots Hopped . | . . . . Potential Cave-ins . | . . . . Cave-ins Triggered . | . . . . Exploration Rate (%) 37 | 6 67 71 6 Regions Visited 3 Branch Regions 2 Pre-discovered Areas . | . . . . Known Exits Taken . | . . . . Unknown Exits Taken 3 | 1 1 1 . Scrap Searched 2 | . . 2 . Spaces Dug . | . . . . Terrain Destroyed . | . . . . Melee . | . . . . Projectile . | . . . . AOE . | . . . . Terrain Rammed . | . . . . Walls Destroyed . | . . . . Machines Disabled . | . . . . Actions | -11 -10 -10 -10 --------- Run | Yrd Mat Min Sub Total 909 | 97 428 350 34 Wait 7 | . 6 . 1 Move 799 | 76 360 330 33 Hop . | . . . . Pick Up 17 | 5 9 3 . Fast Attach 7 | 7 . . . Attach . | . . . . Detach . | . . . . Swap 6 | . 5 1 . Drop 11 | 1 7 3 . Fire 56 | 8 39 9 . Melee . | . . . . Ram . | . . . . Kick . | . . . . Crush 3 | . 2 1 . Escape Stasis . | . . . . Rewire 3 | . . 3 . Trap . | . . . . Miscellaneous . | . . . . Route ------- -11/Scrapyard -10/Materials (discovered 3 exits: [*Mat] / *Min x2) -10/Mines (discovered 3 exits: [*Mat x2] / [*Sub]) -10/Subcaves (discovered 1 exit: [*Mat]) History --------- Turn | Location | Event 17 | -11/Scrapyard | Discovered new exit (range 16) 160 | -11/Scrapyard | Entered Materials 314 | -10/Materials | Build established: Mutant 520 | -10/Materials | Discovered new exit (range 7) 626 | -10/Materials | Discovered new exit (range 8) 721 | -10/Materials | Discovered new exit (range 12) 760 | -10/Materials | Derelicts attacked the area 881 | -10/Materials | Entered Mines 918 | -10/Mines | Met a Derelict bent on vengeance 1006 | -10/Mines | A weapon hastily lodged in a ceiling crevice suddenly fell to the ground 1233 | -10/Mines | Received a Rocket Launcher from a helpful Derelict 1258 | -10/Mines | Discovered new exit (range 7) 1260 | -10/Mines | Learned Materials garrison access intel 1389 | -10/Mines | Discovered new exit (range 5) 1401 | -10/Mines | Assisted by bots powering up and referring to "LRC-V3" 1432 | -10/Mines | Assembled infested the area 1434 | -10/Mines | Core integrity fell below 50% 1437 | -10/Mines | Discovered new exit (range 8) 1440 | -10/Mines | Core integrity fell below 20% 1441 | -10/Mines | Released all parts (5) 1443 | -10/Mines | Entered Subcaves 1444 | -10/Subcaves | Approached by a straggling Scientist 1445 | -10/Subcaves | Discovered new exit (range 15) 1461 | -10/Subcaves | Destroyed by 80-X4A(R) with Subdweller Laser Last Messages --------------- 01437_ Beam Cannon destroyed. 01438_ The unstable cave ceiling collapses. 01439_ K-01 Serf collects debris. 01441_ Released Lgt. Treads. 01441_ Released Lgt. Ion Engine. 01441_ Released Med. Storage Unit. 01441_ Released Seismic Detector. 01441_ Released Lgt. Treads. 01442_ The unstable cave ceiling collapses. 01442_ K-01 Serf collects debris. 01443_ The unstable cave ceiling collapses. LOCATION=UNKNOWN AMBIENT_HEAT=-10 GOAL=ESCAPE 01444_ B9-FN0(c): "Thank the algorithms! I was beginning to lose hope I'd never make it past all the Subs lurking out here." 01445_ EXIT=FOUND 01447_ B9-FN0(c): "Hey, let me tag along and I can get us both out of this nasty situation. At least I think I can... The group I got separated from was talking about a shortcut back to the UFD." Map ----- +----------------------------------------------------+ | ?????????????????????????????????????????????????? | | ?????????????????????????????????????????????????? | | ?????????????????????????????????????????????????? | | ?????????????????????????????????????????????????? | | ?????????????????????????????????????????????????? | | ?????????????????????????????????????????????????? | | ?????????????????????????????????????????????????? | | ?????????????????????????????????????????????????? | | ?????????????????????????????????????????????????? | | ?????????????????????????????????????????????????? | | ?????????????????????????????????????????????????? | | ?????????????????????????????????????????????????? | | ?????????????????????????????????????????????????? | | ?????????????????????????????????#?#?????????????? | | ???????????????????????????????? ##????????????? | | ???????????????????????????????? #????????????? | | ????????????????##????????????? ?????????????? | | ????????????????# ???????????? #?????????????? | | ???????????????## ??????????? #?????????????? | | ???????????????# ?????????? #??????????????? | | ???????????????# ????????? #??????????????? | | ???????????????# R ???????# #??????????????? | | ???????????????# #??#### #??????????????? | | ??????????????????# ### #???????????????? | | ?????????????????????# #????????????????? | | ?????????????? ### @ #????????????????? | | ????????????? ##???????????????? | | ???????????# ##??????????????? | | ??????????? ##?????????????? | | ??????????? ####### ## #?????????????? | | ???????????? # ??????## ## #?????????????? | | ?????????????###????????# ## ##?????????????? | | ????????????????????????## ##?????????????? | | ?????????????????????????## #?????????????? | | ??????????????????????????### #####?????????????? | | ????????????????????????????# ##????????????????? | | ????????????????????????????# #????????????????? | | ???????????????????????????## ##???????????????? | | ???????????????????????????# # ##??????????????? | | ???????????????????????????## ##?????????????? | | ???????????????????????????# #?????????????? | | ???????????????????????????# #?????????????? | | ??????????????????????????## ##?????????????? | | ????????????????????????### #??????????????? | | ????????????????????????# ##??????????????? | | ????????????????????????# ###???????????????? | | ????????????????????????# #?????????????????? | | ????????????????????????## #?????????????????? | | ?????????????????????????## #?????????????????? | | ??????????????????????????## #?????????????????? | +----------------------------------------------------+ Best States ------------- Heat Dissipation 25 Energy Generation 10 Energy Capacity 125 Matter Stores 300 Matter Capacity 300 Sight Range 16 Terrain Scan Density 10 Evasion (%) 50 Recoil Reduction 2 Item Schematics ----------------- None Robot Schematics ------------------ None Fabricated ------------ Nothing Repaired ---------- Nothing Alien Tech Used ----------------- None Achievements -------------- None Challenges ------------ None Game ------ Seed DefenseDecoderLegs Manual? 0 Play Time 00:12:30 Cumulative 40.2 hours Start 2025.07.19 @ 14:34:43 End 2025.07.19 @ 14:47:02 Sessions 1 Manual Loads 0 Difficulty Rogue Special Mode None Game No. 43 Rogue 39 Adventurer 4 Explorer 0 Win Type - Total 1 Types 1/0/0/0/0/0/0/0/0/0 Lore% 26 Gallery% 34 Achievement% 33 Wizard Run 0 Options --------- Layout 0 ASCII 0 Keyboard 1 Movement Numpad Keybinds 0 Fullscreen 2 Font 24/Smallcaps Map View 76x50 Zoom Use 0% Tactical HUD 1 Map Filters NONE Filters NONE Steam 1 RUN: 5b22e410-29e1-4714-8e3e-e32af87620a9